bitfinex-derivatives/quotes_ETHF0:USTF0_20250405
["timestamp","ask_amount","ask_price","bid_price","bid_amount"]
[1743882334819,81.28056397,1786.5,1786.4,9.90979]
[1743882335315,83.78056397,1786.5,1786.4,3.2078]
[1743882336714,81.28056397,1786.5,1786.4,3.2078]
[1743882337118,81.28056397,1786.5,1786.4,3.99179]
[1743882337322,83.78056397,1786.5,1786.4,3.2078]
[1743882338321,83.78056397,1786.5,1786.3,0.78402]
[1743882338522,1.4874,1786.4,1786.3,0.78402]
[1743882338717,1.4874,1786.4,1786.3,3.99182]
[1743882338917,3.9874,1786.4,1786.3,3.99182]
[1743882341822,1.4874,1786.4,1786.3,3.99182]
[1743882347823,1.4874,1786.4,1786.3,3.2078]
[1743882348430,1.4874,1786.4,1786.3,3.99184]
[1743882354928,1.4874,1786.4,1786.3,5.43124]
[1743882355133,1.4874,1786.4,1786.3,4.6472]
[1743882355823,1.4874,1786.4,1786.3,5.43124]
[1743882358737,1.4874,1786.4,1786.3,6.17394]
[1743882359437,82.76796397,1786.4,1786.3,6.17394]
[1743882360235,82.76796397,1786.4,1786.3,5.3899]
[1743882360636,82.76796397,1786.4,1786.3,6.17394]
[1743882362736,81.28056397,1786.4,1786.3,6.17394]
[1743882364945,81.28056397,1786.4,1786.3,5.3899]
[1743882367348,81.28056397,1786.4,1786.3,2.1821]
[1743882368047,83.78056397,1786.4,1786.0,3.2078]
[1743882368251,3.2078,1786.2,1785.6,3.2078]
[1743882368551,0.78427,1785.8,1785.4,6.23511]
[1743882368747,2.23211,1785.7,1785.5,1.5054]
[1743882368949,2.23216,1785.6,1785.3,21.91653291]
[1743882369150,2.2322,1785.5,1785.3,23.42193291]
[1743882369350,1.4478,1785.4,1785.3,21.91653291]
[1743882369755,1.4478,1785.4,1785.3,24.13070291]
[1743882369956,3.99212,1785.7,1785.4,0.78443]
[1743882370252,1.4345,1785.6,1785.4,2.21413]
[1743882370448,0.79267714,1785.8,1785.3,21.91653291]
[1743882370449,0.79266714,1785.8,1785.5,2.21408]
[1743882370652,2.22716714,1785.8,1785.6,2.1672]
[1743882370849,0.7843,1785.7,1785.6,2.1672]
[1743882371044,2.2188,1785.7,1785.6,2.1672]
[1743882371453,1.4345,1785.7,1785.6,2.1672]
[1743882372159,2.2188,1785.7,1785.6,2.1672]
[1743882373351,2.2188,1785.7,1785.6,0.7375]
[1743882373653,2.2188,1785.7,1785.4,0.78441]
[1743882373849,1.4892,1785.6,1785.4,0.78441]
[1743882374049,2.27355,1785.6,1785.4,2.20061]
[1743882374255,2.27355,1785.6,1785.4,1.4162]
[1743882374450,1.4892,1785.5,1785.4,1.4162]
[1743882374651,1.4892,1785.5,1785.4,2.20063]
[1743882375751,1.4892,1785.5,1785.4,1.4162]
[1743882376759,2.27359,1785.5,1785.4,1.4162]
[1743882377256,0.78443,1785.4,1785.3,0.7368]
[1743882377455,0.78443,1785.4,1785.3,2.2311]
[1743882378561,5.7078,1785.4,1784.5,3.2078]
[1743882378858,4.6986,1785.3,1784.8,3.2078]
[1743882379061,0.78453,1785.2,1784.9,0.78461]
[1743882379262,4.6986,1785.3,1784.7,0.7314]
[1743882379263,0.78456,1785.1,1785.0,0.7501]
[1743882380363,3.99236,1785.1,1785.0,0.7501]
[1743882381567,0.78461,1785.0,1784.9,1.4438]
[1743882381867,0.78465,1784.9,1784.8,0.7034]
[1743882382066,3.99245,1784.9,1784.8,2.1197]
[1743882384562,3.2078,1784.9,1784.8,2.1197]
[1743882384761,3.2078,1784.9,1784.8,2.90439]
[1743882385062,0.78465,1784.9,1784.8,2.1197]
[1743882385571,0.78464,1785.0,1784.8,2.1197]
[1743882385864,0.78464,1785.0,1784.9,1.4637]
[1743882388467,2.27654,1785.0,1784.9,1.4637]
[1743882391168,0.78465,1784.9,1784.8,0.7034]
[1743882391368,2.24255,1784.9,1784.8,0.7034]
[1743882392568,2.24255,1784.9,1784.8,1.48809]
[1743882392767,2.24255,1784.9,1784.8,0.7034]
[1743882394268,2.24255,1784.9,1784.8,2.1096]
[1743882395371,0.78465,1784.9,1784.8,2.1096]
[1743882398771,4.745,1785.1,1784.8,2.1096]
[1743882398772,0.78463,1785.0,1784.8,2.1096]
[1743882398972,0.78463,1785.0,1784.9,1.4144]
[1743882401673,0.78465,1784.9,1784.8,0.7034]
[1743882401971,3.99245,1784.9,1784.8,2.0988]
[1743882404176,5.7078,1784.9,1784.2,3.2078]
[1743882404377,0.78487,1784.4,1784.3,0.7541]
[1743882404870,3.99265,1784.5,1784.3,0.7541]
[1743882405065,3.2078,1784.5,1784.4,1.5194]
[1743882405269,3.99263,1784.5,1784.4,2.2788]
[1743882405478,3.99263,1784.5,1784.4,1.5194]
[1743882406175,0.78487,1784.4,1784.3,0.7541]
[1743882406376,2.29797,1784.4,1784.3,0.7541]
[1743882407071,2.29797,1784.4,1784.3,2.2913]
[1743882408377,0.78499,1784.2,1783.9,3.99286]
[1743882408682,0.78504,1784.1,1784.0,3.0401]
[1743882410480,3.2078,1784.3,1784.0,3.0401]
[1743882410777,0.78496,1784.2,1784.1,1.3956]
[1743882413476,0.785,1784.1,1784.0,0.7574]
[1743882413682,0.78521,1783.7,1783.5,0.78527]
[1743882413888,0.78521,1783.7,1783.6,1.4935]
[1743882417581,3.99301,1783.7,1783.6,1.4935]
[1743882419979,3.2078,1783.7,1783.6,1.4935]
[1743882420174,3.99298,1783.7,1783.6,1.4935]
[1743882421086,0.78522,1783.6,1783.5,1.48]
[1743882421386,0.78522,1783.6,1783.5,2.9971]
[1743882421783,0.78543,1783.2,1782.7,3.2078]
[1743882421985,3.99323,1783.2,1783.1,0.7274]
[1743882422480,3.99323,1783.2,1783.1,3.013]
[1743882423279,3.99323,1783.2,1783.1,2.2445]
[1743882423786,0.78538,1783.3,1783.1,2.2445]
[1743882424088,0.78538,1783.3,1783.2,1.5171]
[1743882424890,3.2078,1783.4,1783.2,1.5171]
[1743882425192,0.78535,1783.3,1783.2,1.5171]
[1743882425992,0.7854,1783.2,1783.1,0.7274]
[1743882426883,3.9932,1783.2,1783.1,0.7274]
[1743882427686,0.78556,1782.9,1782.6,0.78566]
[1743882427986,0.78551,1783.0,1782.7,5.392]
[1743882428283,0.78551,1783.0,1782.8,1.4148]
[1743882428490,0.79392137,1783.0,1782.8,1.4148]
[1743882429094,0.00841137,1783.0,1782.8,1.4148]
[1743882429287,0.79391137,1783.0,1782.8,1.4148]
[1743882429485,0.00841137,1783.0,1782.8,1.4148]
[1743882429788,0.79390137,1783.0,1782.8,1.4148]
[1743882430090,0.78553,1782.9,1782.8,1.4148]
[1743882430294,2.18213,1782.9,1782.8,1.4148]
[1743882433390,0.78553,1782.9,1782.8,1.4148]
[1743882433695,4.00173137,1783.0,1782.8,2.20036]
[1743882434097,4.00173137,1783.0,1782.9,1.4701]
[1743882434395,4.00173137,1783.0,1782.9,2.25563]
[1743882434396,3.21621137,1783.0,1782.9,2.25563]
[1743882434595,0.00841137,1783.0,1782.9,2.25563]
[1743882435596,0.00841137,1783.0,1782.9,5.46343]
[1743882437096,0.00841137,1783.0,1782.9,4.6779]
[1743882438296,0.00841137,1783.0,1782.9,7.96343]
[1743882438497,81.28056397,1783.2,1782.9,7.9634]
[1743882438690,81.28056397,1783.2,1782.9,5.4634]
[1743882438891,81.28056397,1783.2,1783.0,2.31578]
[1743882439090,81.28056397,1783.2,1783.1,5.5084]
[1743882439794,81.28056397,1783.2,1783.1,8.79384]
[1743882445487,81.28056397,1783.2,1783.1,9.51274]
[1743882445895,81.28056397,1783.2,1783.1,15.43074]
[1743882451903,0.00841137,1783.3,1783.2,0.7854]
[1743882452099,1.4933,1783.8,1783.6,0.78522]
[1743882452295,3.2078,1784.0,1783.7,2.9755]
[1743882452491,1.4933,1783.9,1783.8,1.5399]
[1743882452896,3.9933,1783.9,1783.8,1.5399]
[1743882453102,3.9933,1783.9,1783.7,1.4356]
[1743882453302,1.4933,1783.8,1783.7,0.7151]
[1743882453604,1.4933,1783.8,1783.6,1.5399]
[1743882453998,1.4933,1783.8,1783.5,3.2078]
[1743882454404,1.4933,1783.8,1783.5,5.53296]
[1743882454907,1.4933,1783.8,1783.6,0.78522]
[1743882455106,1.4933,1783.8,1783.5,5.53294]
[1743882455401,1.4933,1783.8,1783.6,0.78522]
[1743882455606,1.4933,1783.8,1783.5,4.7477]
[1743882455904,1.4933,1783.8,1783.6,0.78519]
[1743882456698,1.4933,1783.8,1783.5,4.7477]
[1743882456898,4.7011,1783.8,1783.5,1.5399]
[1743882457100,4.7011,1783.8,1783.6,0.7852]
[1743882457305,1.5162,1783.7,1783.6,0.7852]
[1743882459801,3.22761137,1784.0,1783.7,0.78517]
[1743882460106,1.4837,1783.9,1783.7,0.78517]
[1743882460907,1.4837,1783.9,1783.8,0.78513]
[1743882467104,82.76426397,1783.9,1783.8,0.78513]
[1743882470821,82.76426397,1783.9,1783.8,2.18503]
[1743882474820,81.28056397,1783.9,1783.8,2.18503]
[1743882475924,81.28056397,1783.9,1783.7,1.51056]
[1743882476125,1.4711,1783.8,1783.7,1.51056]
[1743882476326,1.4711,1783.8,1783.7,2.92336]
[1743882478032,81.28056397,1783.9,1783.8,0.78513]
[1743882478233,82.75166397,1783.9,1783.8,2.19793]
[1743882480732,81.28056397,1783.9,1783.8,2.19793]
[1743882481136,81.28056397,1783.9,1783.8,5.40573]
[1743882482839,81.28056397,1783.9,1783.8,1.4128]
[1743882483040,82.70076397,1783.9,1783.8,1.4128]
[1743882483243,83.48587397,1783.9,1783.7,0.7254]
[1743882483539,1.4202,1783.8,1783.7,0.7254]
[1743882483935,1.4202,1783.8,1783.7,2.2308]
[1743882486036,1.4202,1783.8,1783.7,3.01598]
[1743882488240,2.20533,1783.8,1783.2,1.96347]
[1743882488445,3.99299,1783.7,1783.5,0.78525]
[1743882488645,5.39929,1783.7,1783.4,2.1995]
[1743882488845,1.4063,1783.6,1783.5,0.78526]
[1743882489646,1.4063,1783.6,1783.5,2.21746]
[1743882490948,1.4063,1783.6,1783.5,1.4322]
[1743882491747,1.4063,1783.6,1783.5,2.21747]
[1743882497342,3.2078,1783.7,1783.6,0.78522]
[1743882497543,4.6876,1783.7,1783.6,3.04162]
[1743882497949,4.6876,1783.7,1783.6,2.2564]
[1743882498150,5.47278,1783.7,1783.6,2.2564]
[1743882498749,5.47278,1783.7,1783.5,0.78524]
[1743882498951,1.4798,1783.6,1783.5,0.78524]
[1743882499853,1.4798,1783.6,1783.5,2.31624]
[1743882502452,0.78527,1783.5,1783.4,0.7673]
[1743882502657,0.78531,1783.4,1783.3,0.7254]
[1743882502857,2.25291,1783.4,1783.2,2.31378]
[1743882503552,1.418,1783.3,1783.2,2.31378]
[1743882504056,1.418,1783.3,1783.2,1.5284]
[1743882504859,0.7854,1783.2,1783.1,0.7227]
[1743882505260,2.2034,1783.2,1783.1,0.7227]
[1743882507362,2.2034,1783.2,1783.1,2.8917]
[1743882511857,0.78544,1783.1,1783.0,0.00841137]
[1743882512058,5.52914,1783.1,1783.0,0.00841137]
[1743882512860,5.9765911,1783.1,1783.0,0.00841137]
[1743882513063,5.9765911,1783.1,1783.0,1.52311137]
[1743882513563,0.78543,1783.2,1783.0,2.30860137]
[1743882513760,0.78543,1783.2,1783.1,1.5147]
[1743882514957,3.99317,1783.3,1783.1,2.30014]
[1743882515157,3.99317,1783.3,1783.2,1.5401]
[1743882515158,0.78537,1783.3,1783.2,1.5401]
[1743882515357,0.78537,1783.3,1783.2,3.8236]
[1743882516062,0.78537,1783.3,1783.2,3.0382]
[1743882516554,84.48836397,1783.7,1783.4,0.78528]
[1743882516862,85.27358397,1783.7,1783.5,2.2226]
[1743882517060,85.27358397,1783.7,1783.6,1.4538]
[1743882517859,84.48836397,1783.7,1783.3,0.78535]
[1743882518064,3.99309,1783.5,1783.2,0.78537]
[1743882518265,3.2078,1783.5,1783.3,2.23915]
[1743882518467,3.2078,1783.5,1783.4,2.154]
[1743882518664,3.99307,1783.5,1783.4,2.154]
[1743882518867,3.2078,1783.5,1783.4,2.154]
[1743882519561,85.27357397,1783.7,1783.4,2.93929]
[1743882519767,85.27357397,1783.7,1783.5,2.1985]
[1743882519967,85.27357397,1783.7,1783.6,1.4717]
[1743882520467,84.48836397,1783.7,1783.6,1.4717]
[1743882520967,85.27354397,1783.7,1783.6,1.4717]
[1743882521568,84.48836397,1783.7,1783.6,1.4717]
[1743882521960,85.27354397,1783.7,1783.6,1.4717]
[1743882526468,84.48836397,1783.7,1783.6,1.4717]
[1743882526769,85.27354397,1783.7,1783.6,1.4717]
[1743882528669,3.99298,1783.7,1783.6,1.4717]
[1743882529371,3.2078,1783.7,1783.6,1.4717]
[1743882529572,3.99298,1783.7,1783.6,1.4717]
[1743882540270,3.2078,1783.7,1783.6,2.25692]
[1743882540470,0.78515,1783.8,1783.6,2.25692]
[1743882540670,0.78515,1783.8,1783.7,2.2073]
[1743882542671,0.78513,1783.8,1783.7,2.2073]
[1743882544576,3.99293,1783.8,1783.7,2.2073]
[1743882547073,3.2078,1783.8,1783.5,0.7268]
[1743882547379,3.99302,1783.6,1783.5,0.7268]
[1743882547678,3.99302,1783.6,1783.5,2.1356]
[1743882549574,3.2078,1783.6,1783.5,2.92087]
[1743882549877,3.2078,1783.6,1783.5,2.1356]
[1743882550075,3.99302,1783.6,1783.5,2.1356]
[1743882566581,3.2078,1783.6,1783.5,2.92087]
[1743882566980,85.27353397,1783.8,1783.6,0.78522]
[1743882567181,85.27353397,1783.8,1783.6,2.2084]
[1743882567382,84.48836397,1783.8,1783.6,2.2084]
[1743882567681,84.48836397,1783.8,1783.7,1.5045]
[1743882567682,85.27353397,1783.8,1783.7,1.5045]
[1743882570790,82.06573397,1783.8,1783.7,1.5045]
[1743882570991,85.27353397,1783.8,1783.7,1.5045]
[1743882572593,0.78518,1783.7,1783.5,1.51204]
[1743882572793,3.2078,1783.6,1783.5,1.51204]
[1743882574089,3.99302,1783.6,1783.5,0.7268]
[1743882574291,5.44402,1783.6,1783.5,0.7268]
[1743882577300,3.99302,1783.6,1783.5,0.7268]
[1743882577895,3.99302,1783.6,1783.5,2.1941]
[1743882580697,3.99302,1783.6,1783.5,1.4673]
[1743882580996,4.68902,1783.6,1783.5,1.4673]
[1743882582392,0.78531,1783.4,1783.3,1.4281]
[1743882582592,3.99311,1783.4,1783.3,1.4281]
[1743882582792,3.99311,1783.4,1783.3,2.8922]
[1743882587698,3.2078,1783.4,1783.3,3.67755]
[1743882587896,3.99311,1783.4,1783.3,2.8922]
[1743882589596,85.27367397,1783.4,1783.3,2.8922]
[1743882590495,84.48836397,1783.4,1783.3,2.8922]
[1743882590797,85.27367397,1783.4,1783.3,2.8922]
[1743882592492,84.48836397,1783.4,1783.3,2.8922]
[1743882592796,85.27367397,1783.4,1783.3,2.8922]
[1743882594998,84.48836397,1783.4,1783.3,2.8922]
[1743882595200,84.48836397,1783.4,1783.3,3.67755]
[1743882595394,84.48836397,1783.4,1783.3,2.8922]
[1743882596699,84.48836397,1783.4,1783.3,3.67755]
[1743882597797,81.28056397,1783.4,1783.3,3.67755]
[1743882600998,81.28056397,1783.4,1783.3,6.17755]
[1743882601801,81.28056397,1783.4,1783.3,3.67755]
[1743882622211,81.28056397,1783.4,1783.3,6.88535]
[1743882625714,81.28056397,1783.4,1783.3,3.67755]
[1743882626014,81.28056397,1783.4,1783.3,6.88535]
[1743882626508,76.87897535,1783.4,1783.3,6.88535]
[1743882626709,74.44988535,1783.4,1783.3,9.38535]
[1743882626906,72.63035535,1783.4,1783.3,9.38535]
[1743882627112,68.95125535,1783.4,1783.3,9.38535]
[1743882627419,66.20741535,1783.4,1783.3,9.38535]
[1743882630021,63.90772535,1783.4,1783.3,9.38535]
[1743882630217,62.24051535,1783.4,1783.3,15.30335]
[1743882631019,61.04599535,1783.4,1783.3,15.30335]
[1743882631224,58.48475535,1783.4,1783.3,15.30335]
[1743882631516,57.09096535,1783.4,1783.3,15.30335]
[1743882632119,54.49980535,1783.4,1783.3,15.30335]
[1743882632416,31.23039763,1783.4,1783.3,15.30335]
[1743882632620,28.88485763,1783.4,1783.3,15.30335]
[1743882632815,24.96373763,1783.4,1783.3,15.30335]
[1743882633016,22.22404763,1783.4,1783.3,15.86415]
[1743882633216,16.81264763,1783.4,1783.3,15.30335]
[1743882633419,10.19302763,1783.4,1783.3,15.86415]
[1743882633623,6.44450763,1783.4,1783.3,15.86415]
[1743882633919,2.52338763,1783.4,1783.3,15.86415]
[1743882634116,0.00841137,1784.0,1783.9,0.78509]
[1743882634323,0.00841137,1784.0,1783.9,3.99289]
[1743882634521,0.00841137,1784.0,1783.9,0.78509]
[1743882634721,0.00841137,1784.0,1783.9,3.99289]
[1743882636722,0.00841137,1784.0,1783.9,0.78509]
[1743882636914,1.53281137,1784.0,1783.9,0.78509]
[1743882637118,4.03281137,1784.0,1783.7,3.99295]
[1743882637316,1.53281137,1784.0,1783.7,0.78515]
[1743882637516,1.5244,1783.9,1783.6,0.7852]
[1743882637722,0.7215,1783.8,1783.5,1.5249]
[1743882637920,1.4815,1783.7,1783.6,0.7852]
[1743882639823,1.4603,1783.8,1783.7,0.78518]
[1743882642131,1.4603,1783.8,1783.7,2.22018]
[1743882642628,1.4603,1783.8,1783.7,1.435]
[1743882642834,1.4603,1783.8,1783.7,2.22018]
[1743882646744,1.4603,1783.8,1783.7,0.78518]
[1743882656747,0.7388,1783.8,1783.7,0.78518]
[1743882656947,1.4815,1783.9,1783.8,0.78513]
[1743882657246,2.2157,1783.9,1783.8,0.78513]
[1743882658251,2.2157,1783.9,1783.8,2.25803]
[1743882659646,2.2157,1783.9,1783.7,0.78515]
[1743882659847,1.4692,1783.8,1783.6,0.17751462]
[1743882660049,5.3756,1783.8,1783.6,0.17751462]
[1743882660251,0.7662,1783.7,1783.6,0.17751462]
[1743882660553,2.2354,1783.7,1783.6,0.17751462]
[1743882660947,2.2354,1783.7,1783.6,0.96273462]
[1743882662648,2.2354,1783.7,1783.6,1.58691462]
[1743882662950,2.2354,1783.7,1783.6,0.96273462]
[1743882663542,1.4692,1783.7,1783.6,0.96273462]
[1743882663955,1.4692,1783.7,1783.6,2.37213462]
[1743882664149,1.4686,1783.9,1783.7,0.78517]
[1743882664351,2.9346,1783.9,1783.7,2.19457]
[1743882665153,1.4509,1783.8,1783.7,1.4094]
[1743882665354,1.4509,1783.8,1783.6,0.96270462]
[1743882665555,1.4509,1783.8,1783.7,0.78518]
[1743882666956,4.6587,1783.8,1783.7,0.78518]
[1743882667258,4.6587,1783.8,1783.6,0.96271462]
[1743882667559,2.1618,1783.7,1783.6,0.96271462]
[1743882669054,2.1618,1783.7,1783.6,0.17751462]
[1743882669848,2.1618,1783.7,1783.5,2.20283]
[1743882670260,3.2078,1783.8,1783.6,2.22542]
[1743882670462,3.82669,1783.9,1783.7,2.1376]
[1743882670660,3.82669,1783.9,1783.8,1.4402]
[1743882672458,0.78513,1783.8,1783.7,0.6974]
[1743882672658,5.49623,1783.8,1783.7,0.6974]
[1743882672859,4.7111,1783.8,1783.7,0.6974]
[1743882673463,4.7111,1783.8,1783.7,2.188]
[1743882673861,4.7111,1783.8,1783.7,2.97318]
[1743882674059,4.7111,1783.8,1783.7,2.188]
[1743882674561,4.7111,1783.8,1783.7,2.97318]
[1743882674762,0.772,1783.9,1783.7,2.97318]
[1743882674963,0.772,1783.9,1783.8,1.4844]
[1743882675160,2.313,1783.9,1783.8,1.4844]
[1743882675360,3.21621137,1784.0,1783.8,2.26952]
[1743882675560,3.21621137,1784.0,1783.8,2.99662]
[1743882675760,3.21621137,1784.0,1783.9,1.4844]
[1743882676565,3.21621137,1784.0,1783.9,2.26949]
[1743882676770,3.21621137,1784.0,1783.9,1.4844]
[1743882676958,4.00126137,1784.0,1783.9,1.4844]
[1743882679568,3.21621137,1784.0,1783.9,1.4844]
[1743882680466,4.00126137,1784.0,1783.9,1.4844]
[1743882682969,4.70646137,1784.0,1783.9,1.4844]
[1743882686476,3.92141137,1784.0,1783.9,1.4844]
[1743882686671,3.21621137,1784.0,1783.9,1.4844]
[1743882686870,4.00126137,1784.0,1783.9,1.4844]
[1743882689579,0.78513,1783.8,1783.7,0.6974]
[1743882689877,3.99293,1783.8,1783.7,0.6974]
[1743882690379,5.44803,1783.8,1783.7,0.6974]
[1743882691073,5.44803,1783.8,1783.7,2.1888]
[1743882697280,2.24023,1783.8,1783.7,2.1888]
[1743882697480,5.44803,1783.8,1783.7,2.1888]
[1743882699581,2.24023,1783.8,1783.7,2.1888]
[1743882699882,1.4551,1783.8,1783.7,2.1888]
[1743882700978,2.24023,1783.8,1783.7,2.1888]
[1743882705689,5.44803,1783.8,1783.7,2.1888]
[1743882707192,0.78518,1783.7,1783.6,0.7139]
[1743882707388,2.27778,1783.7,1783.6,0.7139]
[1743882708388,3.02418,1783.7,1783.6,0.7139]
[1743882708588,4.739,1783.7,1783.0,0.00841137]
[1743882708794,3.9932,1783.2,1783.1,2.1967]
[1743882711795,3.9932,1783.2,1783.1,2.9566]
[1743882715194,3.9932,1783.2,1783.0,0.00841137]
[1743882715397,0.78544,1783.1,1783.0,0.00841137]
[1743882715899,3.99323,1783.2,1783.0,0.00841137]
[1743882716398,0.78544,1783.1,1783.0,0.00841137]
[1743882718197,3.2078,1783.2,1783.0,0.00841137]
[1743882718394,3.9932,1783.2,1783.0,0.00841137]
[1743882718595,3.2078,1783.2,1783.0,0.00841137]
[1743882719403,3.9932,1783.2,1783.0,0.00841137]
[1743882722307,3.2078,1783.2,1783.0,0.00841137]
[1743882723406,3.2078,1783.2,1783.0,1.46891137]
[1743882723704,3.2078,1783.2,1783.1,1.4839]
[1743882729003,3.2078,1783.2,1783.1,2.917]
[1743882733803,3.9932,1783.2,1783.1,2.917]
[1743882734603,5.5263,1783.2,1783.1,2.917]
[1743882738909,3.9932,1783.2,1783.1,2.917]
[1743882749118,0.7854,1783.2,1783.1,2.917]
[1743882749314,3.9932,1783.2,1783.1,2.917]
[1743882762236,0.7854,1783.2,1783.1,2.917]
[1743882762435,3.9932,1783.2,1783.1,2.917]
[1743882768242,5.4786,1783.2,1783.1,2.917]
[1743882768640,5.4786,1783.2,1783.1,3.6611957]
[1743882768843,3.9932,1783.2,1783.1,3.6611957]
[1743882769543,3.9932,1783.2,1783.1,3.66118626]
[1743882771542,3.9932,1783.2,1783.1,3.66118756]
[1743882772340,1.4121,1783.4,1783.2,0.78538]
[1743882772341,3.99312,1783.4,1783.2,0.78538]
[1743882772541,3.99312,1783.4,1783.3,2.18658756]
[1743882772843,3.99312,1783.4,1783.3,2.95478756]
[1743882773235,3.99312,1783.4,1783.3,2.95459433]
[1743882775042,3.99312,1783.4,1783.3,2.95404044]
[1743882775543,0.78532,1783.4,1783.3,2.95404044]
[1743882775743,3.99309,1783.5,1783.3,2.95404044]
[1743882775943,3.99309,1783.5,1783.4,2.88504044]
[1743882778245,3.99309,1783.5,1783.4,2.88469034]
[1743882778446,3.2078,1783.5,1783.4,2.88469034]
[1743882778640,3.99307,1783.5,1783.4,2.88469034]
[1743882779142,3.99307,1783.5,1783.4,0.74309034]
[1743882779348,4.73357,1783.5,1783.4,0.74309034]
[1743882779547,5.50217,1783.5,1783.4,0.74309034]
[1743882781346,5.50217,1783.5,1783.4,1.45846219]
[1743882781749,5.50217,1783.5,1783.4,1.45831185]
[1743882783348,4.73357,1783.5,1783.4,1.45831185]
[1743882783548,4.73357,1783.5,1783.4,1.45824825]
[1743882785151,0.7854,1783.2,1783.1,0.7592]
[1743882785448,3.9932,1783.2,1783.1,0.7592]
[1743882785849,0.78544,1783.1,1783.0,0.00841137]
[1743882786050,0.78544,1783.1,1783.0,1.97220643]
[1743882786954,1.48664,1783.1,1783.0,1.97220643]
[1743882787253,1.48664,1783.1,1783.0,1.97218356]
[1743882788553,0.78544,1783.1,1783.0,1.97218356]
[1743882790960,0.78544,1783.1,1783.0,1.97216891]
[1743882792759,0.78544,1783.1,1783.0,1.97217297]
[1743882793858,4.7294,1783.2,1783.0,1.97217297]
[1743882793859,5.51481,1783.2,1783.0,1.97217297]
[1743882794059,5.51481,1783.2,1783.1,2.7754616]
[1743882794760,5.51481,1783.2,1783.1,2.77545849]
[1743882796461,5.51481,1783.2,1783.1,2.77544719]
[1743882797063,5.51481,1783.2,1783.1,3.52797992]
[1743882797562,5.51481,1783.2,1783.1,4.23788026]
[1743882798264,5.51481,1783.2,1783.1,4.23786687]
[1743882798463,5.51481,1783.2,1783.1,5.00826687]
[1743882798664,5.51481,1783.2,1783.1,5.79370687]
[1743882798868,5.51481,1783.2,1783.1,5.00826687]
[1743882800367,3.99321,1783.2,1783.1,5.00826687]
[1743882800567,3.2078,1783.2,1783.1,5.79370687]
[1743882801662,3.2078,1783.2,1783.1,5.00826687]
[1743882801870,3.2078,1783.2,1783.1,5.00821103]
[1743882802169,3.2078,1783.2,1783.1,5.00820503]
[1743882803867,3.9932,1783.2,1783.1,5.00822169]
[1743882804068,0.7854,1783.2,1783.1,5.00822169]
[1743882805664,0.7854,1783.2,1783.1,4.25573159]
[1743882805861,0.7854,1783.2,1783.1,5.00835061]
[1743882806768,3.99318,1783.3,1783.1,5.79377061]
[1743882807067,3.99318,1783.3,1783.2,2.69665027]
[1743882807371,3.99318,1783.3,1783.2,3.40655061]
[1743882809468,3.99318,1783.3,1783.2,3.40723852]
[1743882811163,3.2078,1783.3,1783.2,4.1926657]
[1743882812971,3.2078,1783.3,1783.2,4.19284929]
[1743882813772,3.99315,1783.3,1783.2,3.40744929]
[1743882814268,0.78535,1783.3,1783.2,3.40744929]
[1743882814766,0.78535,1783.3,1783.2,2.86529953]
[1743882815067,0.78535,1783.3,1783.2,3.40753009]
[1743882817670,3.99314,1783.4,1783.2,3.40753009]
[1743882817872,4.76544,1783.4,1783.3,2.77812975]
[1743882818375,4.76544,1783.4,1783.3,3.48803009]
[1743882818572,4.76544,1783.4,1783.3,3.48779635]
[1743882820877,4.76544,1783.4,1783.3,4.27314635]
[1743882821077,4.76544,1783.4,1783.3,3.48779635]
[1743882821268,4.76544,1783.4,1783.3,2.00499635]
[1743882821468,4.76544,1783.4,1783.3,3.47009635]
[1743882824078,4.76544,1783.4,1783.3,3.47004444]
[1743882824279,4.76544,1783.4,1783.3,3.47005903]
[1743882827680,4.76544,1783.4,1783.3,3.47012593]
[1743882828285,1.55764,1783.4,1783.3,3.47012593]
[1743882828481,4.76544,1783.4,1783.3,3.47012593]
[1743882829286,1.55764,1783.4,1783.3,3.47012593]
[1743882829478,4.76544,1783.4,1783.3,2.17500034]
[1743882829778,4.76544,1783.4,1783.3,3.47018501]
[1743882831385,4.76544,1783.4,1783.3,3.47022681]
[1743882832980,5.50774,1783.4,1783.3,2.00512681]
[1743882833181,5.50774,1783.4,1783.3,2.00525644]
[1743882834171,5.50774,1783.4,1783.3,1.4630608]
[1743882834586,5.50774,1783.4,1783.3,1.46312613]
[1743882835185,5.50774,1783.4,1783.3,0.70990034]
[1743882836586,0.7854,1783.2,1783.1,1.4392]
[1743882836783,3.9932,1783.2,1783.1,1.4392]
[1743882837086,3.9932,1783.2,1783.1,3.44439397]
[1743882837287,4.6955,1783.2,1783.1,3.44439397]
[1743882837882,4.6955,1783.2,1783.1,1.46317537]
[1743882838084,0.78544,1783.1,1783.0,0.00841137]
[1743882838282,3.99814,1783.1,1783.0,1.37e-06]
[1743882838783,7.54514,1783.1,1783.0,1.37e-06]
[1743882838976,7.54514,1783.1,1782.1,8.78240911]
[1743882838977,0.78584,1782.2,1782.1,8.78240911]
[1743882839178,3.2078,1782.4,1782.1,10.09165208]
[1743882839380,0.78584,1782.2,1782.1,9.54970911]
[1743882839582,0.78584,1782.2,1782.1,10.09073106]
[1743882839988,0.78584,1782.2,1782.1,11.61503106]
[1743882841382,3.99364,1782.2,1782.1,11.61503106]
[1743882841589,3.99364,1782.2,1782.1,11.07400911]
[1743882842182,4.74844,1782.2,1782.1,11.07400911]
[1743882842386,4.74844,1782.2,1782.1,2.2916]
[1743882844085,3.99364,1782.2,1782.1,2.2916]
[1743882844292,0.79423137,1782.3,1782.1,2.2916]
[1743882844489,0.79423137,1782.3,1782.2,1.4126]
[1743882850300,0.00841137,1782.3,1782.2,2.19844]
[1743882851593,0.00841137,1782.3,1782.2,1.4126]
[1743882851996,0.79421137,1782.3,1782.2,1.4126]